Cogmind - Beta 13 @@@ ROGUE MODE // 2024.07.29 @ 20:53:40 Player: DAFFA Result: Self-destructed Performance ------------- Evolutions (1) 500 Regions Visited (4) 800 Robots Destroyed (19) 95 Value Destroyed (422) 422 Prototype IDs (0) 0 Alien Tech Used (0) 0 Bonus (128) 128 TOTAL SCORE: 1945 Bonus ------- Follower Combat Kills 128 Cogmind --------- Core Integrity 85/400 Matter 270/300 Energy 265/265 System Corruption 0% Temperature Cool (6) Movement Hovering (120) Ox1 Location -9/Mines Parts ------- > --- POWER (1) -------- Improved Ion Engine > --- PROPULSION (2) --- Improved Hover Unit > --- UTILITY (4) ------ Visual Processing Unit Improved Signal Interpreter Hacking Suite > --- WEAPON (2) ------- Improved Datajack > --- INVENTORY (5) ---- Improved Signal Interpreter Beam Rifle Improved Light Cannon Datajack Welding Torch Peak State ------------ > --- POWER ------------ Light Ion Engine > --- PROPULSION ------- Flight Unit Flight Unit > --- UTILITY ---------- Sensor Array Improved Signal Interpreter Hacking Suite Hacking Suite > --- WEAPON ----------- Beam Rifle Welding Torch > --- INVENTORY -------- EM Pulse Gun Medium Laser Beam Rifle Improved Light Cannon Datajack [Rating: 16] Favorites ----------- Power Light Ion Engine Engine Light Ion Engine Propulsion Flight Unit Wheel Wheel Hover Unit Hover Unit Flight Unit Flight Unit Utility Hacking Suite Device Sensor Array Storage Small Storage Unit Processor Improved Signal Interpreter Hackware Hacking Suite Protection Hardened Light Armor Plating Weapon Beam Rifle Energy Gun Beam Rifle Ballistic Cannon Improved Light Cannon Special Weapon Welding Torch Slashing Weapon Mining Claw Special Melee Weapon Improved Datajack Build | -11 -10 -10 -9 -9 ------- Run | Yrd Mat Min Mat Min Slots Evolved 2 | . . . 2 . Power . | . . . . . Propulsion . | . . . . . Utility 2 | . . . 2 . Weapon . | . . . . . Parts Attached 44 | 6 24 5 9 . Power 4 | 1 1 1 1 . Engine 4 | 1 1 1 1 . Core . | . . . . . Reactor . | . . . . . Propulsion 18 | 2 12 2 2 . Treads . | . . . . . Leg . | . . . . . Wheel 8 | 2 6 . . . Hover 8 | . 6 . 2 . Flight 2 | . . 2 . . Utility 9 | 1 4 1 3 . Device 1 | . . 1 . . Storage 1 | 1 . . . . Processor 3 | . 1 . 2 . Hackware 2 | . 1 . 1 . Protection 2 | . 2 . . . Artifact . | . . . . . Weapon 13 | 2 7 1 3 . Energy Gun 6 | 2 4 . . . Energy Cannon . | . . . . . Ballistic Gun . | . . . . . Ballistic Cannon 3 | . 3 . . . Launcher . | . . . . . Special Weapon 1 | . . 1 . . Impact Weapon . | . . . . . Slashing Weapon 1 | . . . 1 . Piercing Weapon . | . . . . . Special Melee Weapon 2 | . . . 2 . Unidentified Prototypes . | . . . . . Parts Lost 6 | . 1 . 5 . Power 2 | . 1 . 1 . Propulsion 2 | . . . 2 . Utility . | . . . . . Weapon 2 | . . . 2 . Highest Loss Streak 4 | . 1 . 4 . To Critical Strikes . | . . . . . Average Slot Usage (%) 86 | . 88 93 79 66 Engine 10 | . 10 13 8 11 Wheel 4 | . 19 . . . Hover 3 | . 8 . 1 11 Flight 13 | . . 27 9 . Device 7 | . . 13 6 . Storage 2 | . 9 . . . Processor 6 | . 3 . 12 22 Hackware 14 | . 3 14 21 11 Protection 1 | . 5 . . . Energy Gun 13 | . 20 14 8 . Ballistic Cannon 1 | . 5 . . . Special Weapon 3 | . . 7 2 . Slashing Weapon 2 | . . . 5 . Naked Turns . | . . . . . Heaviest Build 20 | 12 20 9 9 8 Greatest Support 26 | 20 26 12 8 7 Greatest Overweight (x) 2 | . 1 2 2 1 Average Overweight (x) . | . . . . 1 Largest Inventory Capacity 8 | 8 8 5 5 5 Average Capacity 5 | 6 7 5 5 5 Most Carried 8 | 3 8 5 5 5 Average Carried 4 | . 4 4 4 5 Final Capacity 8 | 8 5 5 5 5 Final Carried 5 | . 5 5 5 5 Class Distribution -------------------- 39% | Scavenger-Mutant 31% | Mutant 28% | Hacker-Mutant Dominant Class ---------------- Mutant | -10/Materials Scavenger-Mutant | -10/Mines Hacker-Mutant | -9/Materials Mutant | -9/Mines Resources | -11 -10 -10 -9 -9 ----------- Run | Yrd Mat Min Mat Min Matter Collected 650 | 225 154 98 173 . Remotely . | . . . . . Salvage Created 450 | . 232 81 137 . Parts 35 | . 18 10 7 . Haulers Intercepted . | . . . . . Recyclers Shooed . | . . . . . Parts Field Recycled . | . . . . . Retrieved Matter . | . . . . . Parts Self-Destructed . | . . . . . Prevented . | . . . . . Kills | -11 -10 -10 -9 -9 ------- Run | Yrd Mat Min Mat Min Combat Hostiles Destroyed 16 | . 9 4 3 . Guns 14 | . 7 4 3 . Cannons 2 | . 2 . . . Classes Destroyed 5 | . 4 . 1 . Operator 1 | . 1 . . . Watcher 2 | . 2 . . . Swarmer 9 | . 6 3 . . Grunt 6 | . 3 1 2 . Duelist 1 | . . . 1 . Best Kill Streak 5 | . 3 5 3 . Combat Bots Only 3 | . 3 3 3 . Max Kills in Single Turn 2 | . 1 2 1 . Gunslinging 1 | . . 1 . . Exploded . | . . . . . Melee . | . . . . . Uniques/NPCs Destroyed . | . . . . . Combat | -11 -10 -10 -9 -9 -------- Run | Yrd Mat Min Mat Min Hostile Shots Fired 102 | . 43 4 45 10 Missed 30 | . 15 2 11 2 Damage Taken 904 | . 292 18 485 109 Core 419 | . 86 18 253 62 Absorbed by Shields . | . . . . . Core Remaining (%) 79 | 100 . 58 . . Volleys Fired 65 | . 39 4 22 . Largest 2 | . 2 2 2 . Hottest 106 | . 106 106 76 . Shots Fired 90 | . 60 6 24 . Gun 73 | . 45 6 22 . Cannon 15 | . 15 . . . Launcher . | . . . . . Special 2 | . . . 2 . Kinetic 15 | . 15 . . . Thermal 66 | . 36 6 24 . Explosive . | . . . . . Electromagnetic 9 | . 9 . . . Robot Hit Streak 7 | . 7 5 6 . Robot Miss Streak 4 | . 4 1 3 . Penetration Max . | . . . . . Secondary Targets 1 | . . 1 . . Max Gunslinging Chain 1 | . . 1 . . Shots Hit Robots 51 | . 31 5 15 . Core Hits 26 | . 14 4 8 . Critical Kills . | . . . . . Critical Parts Destroyed . | . . . . . Critical Strikes 4 | . 2 1 1 . Burn 4 | . 2 1 1 . Melee Attacks 1 | . . . 1 . Impact . | . . . . . Slashing . | . . . . . Piercing . | . . . . . Sneak Attacks 1 | . . . 1 . Combat Hostiles . | . . . . . Follow-up Attacks . | . . . . . Damage Inflicted 790 | . 514 72 204 . Guns 558 | . 299 72 187 . Cannons 215 | . 215 . . . Explosions . | . . . . . Melee . | . . . . . Ramming 15 | . . . 15 . Kinetic 215 | . 215 . . . Thermal 529 | . 268 72 189 . Explosive . | . . . . . Electromagnetic 31 | . 31 . . . Impact . | . . . . . Slashing . | . . . . . Piercing . | . . . . . Highest Corruption . | . . . . . Average Corruption . | . . . . . Corruption Purged . | . . . . . Corruption Blocked . | . . . . . Overload Shots . | . . . . . Overflow Damage . | . . . . . Projectiles . | . . . . . Explosions . | . . . . . Melee . | . . . . . Knockbacks 5 | . 5 . . . Impact . | . . . . . Kinetic 4 | . 4 . . . Secondary 1 | . 1 . . . Self-Inflicted Damage 7 | . . . 7 . Shots . | . . . . . Rammed 1 | . . . 1 . Targets Rammed 1 | . . . 1 . Kicked . | . . . . . Crushed . | . . . . . Highest Temperature 322 | . 322 72 73 . Average Temperature 74 | . 92 29 35 . Received Heat Transfer 399 | . 105 . 234 60 Siege Activations . | . . . . . Robots Corrupted . | . . . . . Combat Hostiles . | . . . . . Parts Fried . | . . . . . Impact Corruptions . | . . . . . Robots Melted . | . . . . . Combat Hostiles . | . . . . . Parts Melted 4 | . 3 . 1 . Heat Transferred 1727 | . 888 259 580 . Parts Sabotaged . | . . . . . Parts Stolen . | . . . . . Parts Stripped . | . . . . . Power Chain Reactions . | . . . . . Alert | -11 -10 -10 -9 -9 ------- Run | Yrd Mat Min Mat Min Peak Influence 274 | . 274 234 155 38 Initial 106 | . . 106 13 23 Average 115 | . 124 177 68 37 Maximum Alert Level 1 | . 1 1 . . Low Security (%) 85 | 100 79 73 100 100 Level 1 14 | . 20 26 . . Level 2 . | . . . . . Level 3 . | . . . . . Level 4 . | . . . . . Level 5 . | . . . . . High Security . | . . . . . Max Security . | . . . . . Squads Dispatched 3 | . 2 . 1 . Investigation . | . . . . . Extermination . | . . . . . Reinforcement 3 | . 2 . 1 . Assault . | . . . . . Garrison . | . . . . . Intercept . | . . . . . Searches Triggered . | . . . . . Construction Impeded . | . . . . . Haulers Reinforced . | . . . . . Active Scanning Responses . | . . . . . Cargo Convoy Interrupts . | . . . . . Stealth | -11 -10 -10 -9 -9 --------- Run | Yrd Mat Min Mat Min Distress Signals 7 | . 1 . 6 . Communications Jammed . | . . . . . Distress Signals . | . . . . . Times Spotted 39 | . 17 4 16 2 Peak Tracking Total 6 | . 4 2 6 2 Tactical Retreats 4 | . . . 4 . Traps | -11 -10 -10 -9 -9 ------- Run | Yrd Mat Min Mat Min Traps Triggered 3 | . 2 . 1 . Indirectly . | . . . . . Trap Hack Attempts . | . . . . . Triggered . | . . . . . Disarmed . | . . . . . Reprogrammed . | . . . . . Reused . | . . . . . Traps Extracted . | . . . . . Installed . | . . . . . Triggered . | . . . . . Machines | -11 -10 -10 -9 -9 ---------- Run | Yrd Mat Min Mat Min Machines Disabled 2 | . 1 . 1 . Max in Single Turn 1 | . 1 . 1 . Machines Repaired . | . . . . . Machines Dismantled . | . . . . . Machines Sabotaged . | . . . . . Overloaded Fab Kills . | . . . . . Hacking | -11 -10 -10 -9 -9 --------- Run | Yrd Mat Min Mat Min Machines Accessed . | . . . . . Terminals . | . . . . . Fabricators . | . . . . . Repair Stations . | . . . . . Recycling Units . | . . . . . Scanalyzers . | . . . . . Garrison Access . | . . . . . Total Hacks . | . . . . . Successful . | . . . . . Failed . | . . . . . Catastrophic . | . . . . . Database Lockouts . | . . . . . Manual . | . . . . . Terminals . | . . . . . Fabricators . | . . . . . Repair Stations . | . . . . . Recycling Units . | . . . . . Scanalyzers . | . . . . . Garrison Access . | . . . . . Terminal Hacks . | . . . . . Fabricator Hacks . | . . . . . Repair Station Hacks . | . . . . . Recycling Unit Hacks . | . . . . . Scanalyzer . | . . . . . Garrison Access Hacks . | . . . . . Unauthorized Hacks . | . . . . . Terminals . | . . . . . Fabricators . | . . . . . Repair Stations . | . . . . . Recycling Units . | . . . . . Scanalyzers . | . . . . . Garrison Access . | . . . . . Data Cores Recovered . | . . . . . Used . | . . . . . Hacking Detections . | . . . . . Full Trace Events . | . . . . . Feedback Events . | . . . . . Feedback Blocked . | . . . . . Robot Schematics Acquired . | . . . . . Robots Built . | . . . . . Authchips . | . . . . . Time . | . . . . . Total Robot Build Rating . | . . . . . Part Schematics Acquired . | . . . . . Parts Built . | . . . . . Authchips . | . . . . . Time . | . . . . . Total Part Build Rating . | . . . . . Parts Repaired . | . . . . . Time . | . . . . . Parts Recycled . | . . . . . Recycled Matter . | . . . . . Retrieved Matter . | . . . . . Retrieved Components . | . . . . . Parts Scanalyzed . | . . . . . Part Schematics Acquired . | . . . . . Parts Damaged . | . . . . . Bothacking | -11 -10 -10 -9 -9 ------------ Run | Yrd Mat Min Mat Min Used RIF Installer . | . . . . . Robots Hacked . | . . . . . Non-combat . | . . . . . Combat . | . . . . . Robot Hacks Applied . | . . . . . Relay Couplers Released . | . . . . . Fabnet Peak Effective % . | . . . . . Robots Rewired . | . . . . . Allies Hacked . | . . . . . Hacks Repelled . | . . . . . Allies | -11 -10 -10 -9 -9 -------- Run | Yrd Mat Min Mat Min Total Allies 3 | . . 3 . . Largest Group 3 | . . 3 3 . Highest-Rated Group 40 | . . 40 40 . Highest-Rated Ally 16 | . . 16 16 . Total Orders . | . . . . . Ally Attacks 28 | . . 9 19 . Total Damage 286 | . . 85 201 . Kills 4 | . . 1 3 . Allies Corrupted . | . . . . . Allies Melted . | . . . . . Intel | -11 -10 -10 -9 -9 ------- Run | Yrd Mat Min Mat Min Robot Analysis Total . | . . . . . Derelict Logs Recovered 2 | . . 2 . . Drone Launches . | . . . . . Drone Recoveries . | . . . . . Exploration | -11 -10 -10 -9 -9 ------------- Run | Yrd Mat Min Mat Min Turns Passed 1299 | 68 316 441 454 20 Spaces Moved 1189 | 73 172 612 319 13 Core 90 | 7 . 1 82 . Treads . | . . . . . Legs . | . . . . . Wheels 190 | 66 124 . . . Hover 110 | . 48 2 47 13 Flight 799 | . . 609 190 . Fastest Speed 37 | 50 56 37 37 120 Average Speed 56 | 77 75 37 75 120 Slowest Speed 200 | 80 116 200 200 120 Overloaded Moves . | . . . . . Propulsion Burnouts . | . . . . . Robots Hopped 9 | . . 4 5 . Cave-ins Triggered . | . . . . . Exploration Rate (%) 30 | 3 20 89 33 8 Regions Visited 4 Branch Regions 2 Pre-discovered Areas 1 | . . 1 . . Known Exits Taken 2 | . 1 . 1 . Unknown Exits Taken 2 | 1 . 1 . . Scrap Searched 1 | . . 1 . . Spaces Dug . | . . . . . Terrain Destroyed . | . . . . . Melee . | . . . . . Projectile . | . . . . . AOE . | . . . . . Terrain Rammed . | . . . . . Walls Destroyed . | . . . . . Machines Disabled . | . . . . . Actions | -11 -10 -10 -9 -9 --------- Run | Yrd Mat Min Mat Min Total 1706 | 84 296 811 498 17 Wait 376 | . 34 190 148 4 Move 1170 | 72 171 603 311 13 Hop 6 | . . 4 2 . Pick Up 27 | 6 17 2 2 . Fast Attach 13 | . 3 2 8 . Attach 17 | 6 9 2 . . Detach 5 | . 4 1 . . Swap 14 | . 12 1 1 . Drop 11 | . 7 2 2 . Fire 65 | . 39 4 22 . Melee 1 | . . . 1 . Ram 1 | . . . 1 . Kick . | . . . . . Crush . | . . . . . Escape Stasis . | . . . . . Rewire . | . . . . . Trap . | . . . . . Miscellaneous . | . . . . . Route ------- -11/Scrapyard -10/Materials -10/Mines (discovered 2 exits: [*Mat x2]) -9/Materials -9/Mines History --------- Turn | Location | Event 40 | -11/Scrapyard | Discovered new exit (range 12) 69 | -11/Scrapyard | Entered Materials 225 | -10/Materials | Discovered new exit (range 7) 324 | -10/Materials | Build established: Mutant 381 | -10/Materials | Identified exit to Mines 385 | -10/Materials | Entered Mines 473 | -10/Mines | Discovered new exit (range 3) 512 | -10/Mines | Learned Materials interactive machine intel 549 | -10/Mines | Assisted by bots powering up and referring to "LRC-V3" 627 | -10/Mines | Discovered new exit (range 11) 683 | -10/Mines | Build established: Scavenger-Mutant 826 | -10/Mines | Entered Materials 826 | -9/Materials | Accompanied by 3 allies 826 | -9/Materials | Evolved 2 slots: Utility x2 827 | -9/Materials | Loaded intel: 18 interactive machine locations 952 | -9/Materials | Lost 3 allies 1174 | -9/Materials | Core integrity fell below 50% 1194 | -9/Materials | Build established: Hacker-Mutant 1226 | -9/Materials | Lost 4 parts (1p1n2w) 1270 | -9/Materials | Discovered new exit (range 9) 1278 | -9/Materials | Identified exit to Mines 1280 | -9/Materials | Entered Mines 1296 | -9/Mines | Met a Derelict bent on vengeance 1300 | -9/Mines | Self-destructed Last Messages --------------- 01226_ Sneak attack on K-01 Serf. 01226_ Jacked K-01 Serf... >>find_chute No applicable chute records found in memory. 01256_ Acquired 30 matter. 01260_ Triggered Blade Trap. 01260_ Massive razor-sharp blades shoot up from within the floor. 01260_ Hacking Suite severed. 01260_ Imp. Datajack severed. 01260_ Imp. Hover Unit severed. 01261_ Acquired Imp. Hover Unit. 01263_ Acquired Imp. Datajack. 01267_ Acquired Imp. Ion Engine. 01270_ EXIT=FOUND 01275_ K-01 Serf cleans the Machine. 01278_ EXIT=IDENTIFIED: MINES LOCATION=MINES GOAL=ESCAPE Something is scanning the area. Map ----- +----------------------------------------------------+ | ??????????????????????????????????? | | ??????????????????????????????????? | | ??????????????????????????????????? | | ??????????????????????????????????? | | ??????????????????????????????????? | | ??????????????????????????????????? | | ?????????#????????????????????????? | | ?????????# ???????????????????????? | | ?????????# ???????????????????????? | | ?????????# ???????????????????????? | | ?????????# ???????????????????????? | | ???????### #??????????????????????? | | ???????# ##????????????????????? | | ???????? #????????????????????? | | ????????? ##???????????????????? | | ?????????# ##??????????????????? | | ?????????# ##?????????????????? | | ????????## ##????????????????? | | ????????# #????????????????? | | ????????# #????????????????? | | ????????# #????????????????? | | ????????## #????????????????? | | ?????????### ##????????????????? | | ???????????### #?????????????????? | | ???????#####?# #???????? #???????? | | ??????## @### #???? #???????? | | ??????# # # #????????? | | ??????# g #???????????? | | ??????# """ ##???????????? | | ??????# """ ##????????????? | | ??????## """ #?????????????? | | ???????# """ # #?????????????? | | ???????## ## #?????????????? | | ????????##### ##? #?????????????? | | ????????????####??? #?????????????? | | ??????????????????? #?????????????? | | ????????????????????#?????????????? | | ??????????????????????????????????? | | ??????????????????????????????????? | | ??????????????????????????????????? | | ??????????????????????????????????? | | ??????????????????????????????????? | | ??????????????????????????????????? | | ??????????????????????????????????? | | ??????????????????????????????????? | | ??????????????????????????????????? | | ??????????????????????????????????? | | ??????????????????????????????????? | | ??????????????????????????????????? | | ??????????????????????????????????? | +----------------------------------------------------+ Best States ------------- Heat Dissipation 28 Energy Generation 12 Energy Capacity 265 Matter Stores 300 Matter Capacity 300 Sight Range 18 Robot Scan Range 14 Terrain Scan Density 10 Armor Coverage 150 Evasion (%) 62 Offensive Hacking 20 Item Schematics ----------------- None Robot Schematics ------------------ None Fabricated ------------ Nothing Alien Tech Used ----------------- None Achievements -------------- Cya! Challenges ------------ None Game ------ Seed WardroneMagneticCompactor Manual? 0 Play Time 00:20:36 Cumulative 7.2 hours Start 2024.07.29 @ 20:25:09 End 2024.07.29 @ 20:53:40 Sessions 1 Manual Loads 0 Difficulty Rogue Special Mode None Game No. 9 Rogue 5 Adventurer 4 Explorer 0 Win Type - Total 0 Types 0/0/0/0/0/0/0/0/0 Lore% 2 Gallery% 13 Achievement% 10 Wizard Run 0 Options --------- Layout 1 ASCII 0 Keyboard 0 Movement Mouse Keybinds 0 Fullscreen 1 Font 24/Smallcaps Map View 50x35 Zoom Use 0% Tactical HUD 1 Map Filters NONE Filters NONE Steam 1 RUN: 30311e56-592e-446b-a01b-a132c439b766